[Event "Titled Tuesday Blitz August 22 Early 2023"]
[White "Rustemov, Alexander"]
[Black "Vachier-Lagrave, Maxime"]
[WhiteFideId "4119002"]
[BlackFideId "623539"]
[WhiteElo "2874"]
[BlackElo "3135"]
[Result "0-1"]
[Round "5"]
[TimeControl "180+1"]
[Date "2023.08.22"]
[WhiteClock "0:00:04"]
[BlackClock "0:00:15"]
[Board "10"]

1. d4 {[%clk 0:03:00]}  Nf6 {[%clk 0:03:00]} 2. c4 {[%clk 0:03:00]}  g6 {[%clk 0:02:59]} 3. Nf3 {[%clk 0:03:01]}  Bg7 {[%clk 0:02:59]} 4. g3 {[%clk 0:03:01]}  c5 {[%clk 0:02:58]} 5. Bg2 {[%clk 0:02:58]}  Qa5+ {[%clk 0:02:51]} 6. Bd2 {[%clk 0:02:47]}  Qb6 {[%clk 0:02:50]} 7. Bc3 {[%clk 0:02:40]}  Ne4 {[%clk 0:02:49]} 8. O-O {[%clk 0:02:29]}  O-O {[%clk 0:02:39]} 9. e3 {[%clk 0:02:01]}  Nc6 {[%clk 0:02:31]} 10. Qb3 {[%clk 0:01:19]}  Nxc3 {[%clk 0:02:16]} 11. bxc3 {[%clk 0:01:06]}  d6 {[%clk 0:02:15]} 12. Nbd2 {[%clk 0:01:05]}  Qc7 {[%clk 0:02:12]} 13. Rfe1 {[%clk 0:00:59]}  Na5 {[%clk 0:02:10]} 14. Qc2 {[%clk 0:00:54]}  Be6 {[%clk 0:02:06]} 15. d5 {[%clk 0:00:52]}  Bg4 {[%clk 0:02:00]} 16. h3 {[%clk 0:00:49]}  Bd7 {[%clk 0:01:57]} 17. a4 {[%clk 0:00:48]}  e5 {[%clk 0:01:55]} 18. h4 {[%clk 0:00:26]}  h6 {[%clk 0:01:52]} 19. e4 {[%clk 0:00:22]}  b6 {[%clk 0:01:42]} 20. h5 {[%clk 0:00:22]}  g5 {[%clk 0:01:41]} 21. Nh2 {[%clk 0:00:22]}  Qc8 {[%clk 0:01:40]} 22. Qd1 {[%clk 0:00:21]}  f5 {[%clk 0:01:23]} 23. exf5 {[%clk 0:00:20]}  Bxf5 {[%clk 0:01:24]} 24. Qe2 {[%clk 0:00:15]}  Qd7 {[%clk 0:01:23]} 25. Be4 {[%clk 0:00:15]}  Bh3 {[%clk 0:01:17]} 26. g4 {[%clk 0:00:15]}  Rf4 {[%clk 0:01:13]} 27. f3 {[%clk 0:00:15]}  Raf8 {[%clk 0:01:13]} 28. Ndf1 {[%clk 0:00:11]}  Bxf1 {[%clk 0:01:12]} 29. Rxf1 {[%clk 0:00:11]}  Qc8 {[%clk 0:01:10]} 30. Kg2 {[%clk 0:00:11]}  Qa6 {[%clk 0:01:10]} 31. Bd3 {[%clk 0:00:11]}  e4 {[%clk 0:01:07]} 32. fxe4 {[%clk 0:00:11]}  Bxc3 {[%clk 0:01:06]} 33. Rxf4 {[%clk 0:00:11]}  Rxf4 {[%clk 0:01:05]} 34. Rf1 {[%clk 0:00:11]}  Rxf1 {[%clk 0:00:56]} 35. Nxf1 {[%clk 0:00:12]}  Be5 {[%clk 0:00:52]} 36. Ne3 {[%clk 0:00:09]}  Qc8 {[%clk 0:00:45]} 37. Nf5 {[%clk 0:00:09]}  Qf8 {[%clk 0:00:45]} 38. Qc2 {[%clk 0:00:09]}  Qf6 {[%clk 0:00:45]} 39. Kf3 {[%clk 0:00:09]}  Kf8 {[%clk 0:00:45]} 40. Ke2 {[%clk 0:00:10]}  Ke8 {[%clk 0:00:45]} 41. Kf3 {[%clk 0:00:10]}  Kd7 {[%clk 0:00:45]} 42. Ke2 {[%clk 0:00:11]}  Kc7 {[%clk 0:00:46]} 43. Kf3 {[%clk 0:00:12]}  Bf4 {[%clk 0:00:44]} 44. Kg2 {[%clk 0:00:12]}  Nb7 {[%clk 0:00:42]} 45. Kf3 {[%clk 0:00:12]}  Qa1 {[%clk 0:00:40]} 46. Kg2 {[%clk 0:00:11]}  Qf6 {[%clk 0:00:35]} 47. Kf3 {[%clk 0:00:11]}  Nd8 {[%clk 0:00:35]} 48. Kg2 {[%clk 0:00:12]}  Nf7 {[%clk 0:00:32]} 49. a5 {[%clk 0:00:12]}  Ne5 {[%clk 0:00:31]} 50. axb6+ {[%clk 0:00:11]}  axb6 {[%clk 0:00:32]} 51. Be2 {[%clk 0:00:12]}  Kb7 {[%clk 0:00:32]} 52. Qa4 {[%clk 0:00:12]}  Qf8 {[%clk 0:00:31]} 53. Kh3 {[%clk 0:00:10]}  Nf7 {[%clk 0:00:31]} 54. Kg2 {[%clk 0:00:10]}  Ne5 {[%clk 0:00:31]} 55. Kh3 {[%clk 0:00:10]}  Bd2 {[%clk 0:00:31]} 56. Kg2 {[%clk 0:00:10]}  Bb4 {[%clk 0:00:30]} 57. Kh3 {[%clk 0:00:10]}  Ba5 {[%clk 0:00:30]} 58. Kg2 {[%clk 0:00:11]}  Kc7 {[%clk 0:00:23]} 59. Kh3 {[%clk 0:00:11]}  Qf6 {[%clk 0:00:21]} 60. Kg2 {[%clk 0:00:11]}  Kd8 {[%clk 0:00:20]} 61. Kh3 {[%clk 0:00:10]}  Qf8 {[%clk 0:00:15]} 62. Kg2 {[%clk 0:00:10]}  Kc8 {[%clk 0:00:12]} 63. Qb5 {[%clk 0:00:10]}  Kb7 {[%clk 0:00:13]} 64. Kh3 {[%clk 0:00:10]}  Bc3 {[%clk 0:00:13]} 65. Kg2 {[%clk 0:00:10]}  Bd4 {[%clk 0:00:11]} 66. Qe8 {[%clk 0:00:10]}  Qxe8 {[%clk 0:00:11]} 67. Nxd6+ {[%clk 0:00:10]}  Kb8 {[%clk 0:00:09]} 68. Nxe8 {[%clk 0:00:11]}  Nf7 {[%clk 0:00:09]} 69. Bd1 {[%clk 0:00:08]}  Kc8 {[%clk 0:00:08]} 70. Ba4 {[%clk 0:00:08]}  Kd8 {[%clk 0:00:09]} 71. Kg3 {[%clk 0:00:07]}  Ne5 {[%clk 0:00:08]} 72. Bb5 {[%clk 0:00:06]}  Nf7 {[%clk 0:00:08]} 73. Kf3 {[%clk 0:00:06]}  Be5 {[%clk 0:00:08]} 74. Ke2 {[%clk 0:00:06]}  Ke7 {[%clk 0:00:08]} 75. Kf3 {[%clk 0:00:07]}  Bc3 {[%clk 0:00:08]} 76. Ke2 {[%clk 0:00:07]}  Ne5 {[%clk 0:00:08]} 77. Nc7 {[%clk 0:00:06]}  Nxg4 {[%clk 0:00:09]} 78. Na8 {[%clk 0:00:07]}  Ba5 {[%clk 0:00:09]} 79. Kf3 {[%clk 0:00:07]}  Ne5+ {[%clk 0:00:10]} 80. Kg3 {[%clk 0:00:07]}  Kd6 {[%clk 0:00:10]} 81. Kf2 {[%clk 0:00:07]}  Nd3+ {[%clk 0:00:11]} 82. Kf3 {[%clk 0:00:07]}  Ne5+ {[%clk 0:00:11]} 83. Kg3 {[%clk 0:00:08]}  Nf7 {[%clk 0:00:10]} 84. Kg4 {[%clk 0:00:08]}  Ke5 {[%clk 0:00:11]} 85. Nc7 {[%clk 0:00:07]}  Nd6 {[%clk 0:00:11]} 86. Ne6 {[%clk 0:00:06]}  Nxe4 {[%clk 0:00:12]} 87. Ng7 {[%clk 0:00:05]}  Nf6+ {[%clk 0:00:12]} 88. Kh3 {[%clk 0:00:04]}  g4+ {[%clk 0:00:13]} 89. Kg3 {[%clk 0:00:04]}  Be1+ {[%clk 0:00:13]} 90. Kg2 {[%clk 0:00:04]}  Bh4 {[%clk 0:00:13]} 91. d6 {[%clk 0:00:03]}  Ne4 {[%clk 0:00:10]} 92. d7 {[%clk 0:00:03]}  Bd8 {[%clk 0:00:10]} 93. Ne8 {[%clk 0:00:03]}  Kf4 {[%clk 0:00:08]} 94. Ng7 {[%clk 0:00:03]}  Ng5 {[%clk 0:00:08]} 95. Ne8 {[%clk 0:00:02]}  Ne6 {[%clk 0:00:08]} 96. Bc6 {[%clk 0:00:02]}  Nd4 {[%clk 0:00:09]} 97. Ba4 {[%clk 0:00:01]}  Nf5 {[%clk 0:00:09]} 98. Ng7 {[%clk 0:00:02]}  Nxg7 {[%clk 0:00:09]} 99. Bc6 {[%clk 0:00:02]}  Nxh5 {[%clk 0:00:10]} 100. Bb5 {[%clk 0:00:01]}  Nf6 {[%clk 0:00:09]} 101. Bc6 {[%clk 0:00:01]}  h5 {[%clk 0:00:10]} 102. Bb5 {[%clk 0:00:02]}  h4 {[%clk 0:00:11]} 103. Bc6 {[%clk 0:00:03]}  h3+ {[%clk 0:00:12]} 104. Kh2 {[%clk 0:00:03]}  Nh7 {[%clk 0:00:12]} 105. Bb5 {[%clk 0:00:03]}  Ng5 {[%clk 0:00:13]} 106. Bc6 {[%clk 0:00:04]}  g3+ {[%clk 0:00:13]} 107. Kh1 {[%clk 0:00:04]}  Nf3 {[%clk 0:00:13]} 108. Bxf3 {[%clk 0:00:03]}  Kxf3 {[%clk 0:00:14]} 109. Kg1 {[%clk 0:00:03]}  g2 {[%clk 0:00:15]} 110. Kh2 {[%clk 0:00:04]}  Bc7+ {[%clk 0:00:15]} 111. Kxh3 {[%clk 0:00:04]}  g1=Q {[%clk 0:00:16]} 112. d8=Q {[%clk 0:00:04]}  Qh1# {[%clk 0:00:15]} 0-1


[Site "https://www.chess.com"]

[Event "Titled Tuesday Blitz August 22 Early 2023"]
[White "So, Wesley"]
[Black "Elsa167"]
[WhiteFideId "5202213"]
[WhiteElo "3109"]
[BlackElo "2866"]
[Result "1-0"]
[Round "5"]
[TimeControl "180+1"]
[Date "2023.08.22"]
[WhiteClock "0:00:11"]
[BlackClock "0:00:00"]
[Board "11"]

1. Nf3 {[%clk 0:02:27]}  Nf6 {[%clk 0:02:28]} 2. g3 {[%clk 0:02:25]}  e6 {[%clk 0:02:26]} 3. Bg2 {[%clk 0:02:24]}  d5 {[%clk 0:02:27]} 4. O-O {[%clk 0:02:25]}  Be7 {[%clk 0:02:27]} 5. c4 {[%clk 0:02:23]}  O-O {[%clk 0:02:28]} 6. b3 {[%clk 0:02:23]}  a5 {[%clk 0:02:26]} 7. e3 {[%clk 0:02:14]}  c6 {[%clk 0:02:23]} 8. Nc3 {[%clk 0:02:12]}  b6 {[%clk 0:02:22]} 9. Bb2 {[%clk 0:02:12]}  Ba6 {[%clk 0:02:22]} 10. d3 {[%clk 0:02:07]}  b5 {[%clk 0:02:13]} 11. Re1 {[%clk 0:01:46]}  Nbd7 {[%clk 0:01:36]} 12. Rc1 {[%clk 0:01:39]}  Qb6 {[%clk 0:01:36]} 13. Ba1 {[%clk 0:01:28]}  Rfd8 {[%clk 0:01:26]} 14. Qe2 {[%clk 0:01:25]}  bxc4 {[%clk 0:01:15]} 15. bxc4 {[%clk 0:01:25]}  dxc4 {[%clk 0:01:15]} 16. d4 {[%clk 0:01:24]}  c5 {[%clk 0:01:09]} 17. Rb1 {[%clk 0:01:17]}  Qa7 {[%clk 0:01:07]} 18. Ne5 {[%clk 0:01:15]}  Nxe5 {[%clk 0:01:01]} 19. dxe5 {[%clk 0:01:16]}  Nd5 {[%clk 0:01:02]} 20. Nxd5 {[%clk 0:01:04]}  exd5 {[%clk 0:01:02]} 21. Red1 {[%clk 0:01:01]}  c3 {[%clk 0:00:51]} 22. Qc2 {[%clk 0:01:02]}  d4 {[%clk 0:00:51]} 23. Bxa8 {[%clk 0:00:53]}  Qxa8 {[%clk 0:00:51]} 24. Rb6 {[%clk 0:00:40]}  Bc4 {[%clk 0:00:39]} 25. e4 {[%clk 0:00:22]}  Qc8 {[%clk 0:00:23]} 26. f3 {[%clk 0:00:21]}  Be6 {[%clk 0:00:20]} 27. Rb5 {[%clk 0:00:18]}  Qa6 {[%clk 0:00:17]} 28. a4 {[%clk 0:00:18]}  Bd7 {[%clk 0:00:14]} 29. Rbb1 {[%clk 0:00:12]}  Qc6 {[%clk 0:00:14]} 30. Bxc3 {[%clk 0:00:11]}  dxc3 {[%clk 0:00:14]} 31. Qxc3 {[%clk 0:00:12]}  Qxa4 {[%clk 0:00:12]} 32. Rd5 {[%clk 0:00:11]}  Be8 {[%clk 0:00:02]} 33. Rxd8 {[%clk 0:00:12]}  Bxd8 {[%clk 0:00:03]} 34. Qxc5 {[%clk 0:00:12]}  Qd7 {[%clk 0:00:02]} 35. Qd5 {[%clk 0:00:11]}  a4 {[%clk 0:00:02]} 36. Rb8 {[%clk 0:00:11]}  Qxd5 {[%clk 0:00:01]} 37. exd5 {[%clk 0:00:11]}  a3 {[%clk 0:00:00]} 38. Rxd8 {[%clk 0:00:11]} 1-0


[Site "https://www.chess.com"]

[Event "Titled Tuesday Blitz August 22 Early 2023"]
[White "Lenderman, Aleksandr"]
[Black "Grischuk, Alexander"]
[WhiteFideId "2021285"]
[BlackFideId "4126025"]
[WhiteElo "2860"]
[BlackElo "3036"]
[Result "0-1"]
[Round "5"]
[TimeControl "180+1"]
[Date "2023.08.22"]
[WhiteClock "0:00:12"]
[BlackClock "0:00:12"]
[Board "12"]

1. d4 {[%clk 0:03:00]}  g6 {[%clk 0:02:59]} 2. c4 {[%clk 0:02:56]}  Bg7 {[%clk 0:03:00]} 3. Nf3 {[%clk 0:02:53]}  d6 {[%clk 0:02:59]} 4. g3 {[%clk 0:02:50]}  Nf6 {[%clk 0:02:58]} 5. Bg2 {[%clk 0:02:50]}  O-O {[%clk 0:02:58]} 6. O-O {[%clk 0:02:51]}  Nbd7 {[%clk 0:02:56]} 7. Nc3 {[%clk 0:02:50]}  e5 {[%clk 0:02:56]} 8. e4 {[%clk 0:02:50]}  exd4 {[%clk 0:02:55]} 9. Nxd4 {[%clk 0:02:50]}  Re8 {[%clk 0:02:55]} 10. h3 {[%clk 0:02:47]}  Nc5 {[%clk 0:02:52]} 11. Re1 {[%clk 0:02:47]}  Bd7 {[%clk 0:02:52]} 12. Rb1 {[%clk 0:02:43]}  a5 {[%clk 0:02:52]} 13. b3 {[%clk 0:02:44]}  h6 {[%clk 0:02:39]} 14. Rb2 {[%clk 0:02:43]}  c6 {[%clk 0:02:30]} 15. Rd2 {[%clk 0:02:42]}  Qb6 {[%clk 0:02:21]} 16. Bb2 {[%clk 0:02:42]}  Rad8 {[%clk 0:02:15]} 17. Nc2 {[%clk 0:02:39]}  Bc8 {[%clk 0:02:02]} 18. Ba1 {[%clk 0:02:28]}  Qc7 {[%clk 0:01:57]} 19. Qb1 {[%clk 0:02:13]}  h5 {[%clk 0:01:54]} 20. Ne3 {[%clk 0:02:13]}  Qe7 {[%clk 0:01:38]} 21. Qd1 {[%clk 0:02:04]}  h4 {[%clk 0:01:33]} 22. g4 {[%clk 0:02:02]}  Bh6 {[%clk 0:01:33]} 23. f3 {[%clk 0:01:54]}  Ne6 {[%clk 0:01:20]} 24. Bf1 {[%clk 0:01:50]}  Nf4 {[%clk 0:01:17]} 25. Rf2 {[%clk 0:01:44]}  Nd7 {[%clk 0:01:16]} 26. Rh2 {[%clk 0:01:27]}  Ne5 {[%clk 0:01:15]} 27. Ng2 {[%clk 0:01:27]}  Qf6 {[%clk 0:01:12]} 28. Nxf4 {[%clk 0:01:24]}  Bxf4 {[%clk 0:01:10]} 29. Rg2 {[%clk 0:01:24]}  Be6 {[%clk 0:01:03]} 30. Be2 {[%clk 0:01:20]}  Qg5 {[%clk 0:00:57]} 31. Rf1 {[%clk 0:01:18]}  Nd7 {[%clk 0:00:46]} 32. Kh1 {[%clk 0:01:16]}  Nf6 {[%clk 0:00:44]} 33. Bd3 {[%clk 0:01:15]}  d5 {[%clk 0:00:44]} 34. exd5 {[%clk 0:01:06]}  cxd5 {[%clk 0:00:45]} 35. c5 {[%clk 0:01:07]}  d4 {[%clk 0:00:44]} 36. Ne2 {[%clk 0:01:07]}  Nd5 {[%clk 0:00:44]} 37. Bxd4 {[%clk 0:01:06]}  Ne3 {[%clk 0:00:43]} 38. Bxe3 {[%clk 0:01:06]}  Bxe3 {[%clk 0:00:43]} 39. Qc2 {[%clk 0:01:07]}  Qxc5 {[%clk 0:00:40]} 40. Bxg6 {[%clk 0:00:50]}  Rd2 {[%clk 0:00:39]} 41. Qxc5 {[%clk 0:00:45]}  Bxc5 {[%clk 0:00:40]} 42. Bb1 {[%clk 0:00:39]}  Bxb3 {[%clk 0:00:34]} 43. axb3 {[%clk 0:00:39]}  Rexe2 {[%clk 0:00:34]} 44. Rxe2 {[%clk 0:00:40]}  Rxe2 {[%clk 0:00:35]} 45. Bd3 {[%clk 0:00:35]}  Rb2 {[%clk 0:00:33]} 46. Bc4 {[%clk 0:00:36]}  b5 {[%clk 0:00:33]} 47. Bxb5 {[%clk 0:00:29]}  Rxb3 {[%clk 0:00:33]} 48. Bc4 {[%clk 0:00:29]}  Rc3 {[%clk 0:00:29]} 49. Bd5 {[%clk 0:00:29]}  a4 {[%clk 0:00:28]} 50. Kg2 {[%clk 0:00:25]}  Rc2+ {[%clk 0:00:26]} 51. Kh1 {[%clk 0:00:25]}  a3 {[%clk 0:00:27]} 52. Ra1 {[%clk 0:00:23]}  Kg7 {[%clk 0:00:24]} 53. Ra2 {[%clk 0:00:23]}  Rc3 {[%clk 0:00:21]} 54. Kg2 {[%clk 0:00:21]}  f6 {[%clk 0:00:15]} 55. f4 {[%clk 0:00:22]}  Rg3+ {[%clk 0:00:15]} 56. Kh2 {[%clk 0:00:21]}  Be3 {[%clk 0:00:12]} 57. g5 {[%clk 0:00:15]}  Bxf4 {[%clk 0:00:10]} 58. gxf6+ {[%clk 0:00:15]}  Kxf6 {[%clk 0:00:11]} 59. Kh1 {[%clk 0:00:15]}  Rxh3+ {[%clk 0:00:11]} 60. Kg1 {[%clk 0:00:16]}  Rg3+ {[%clk 0:00:10]} 61. Rg2 {[%clk 0:00:16]}  Ke5 {[%clk 0:00:11]} 62. Rxg3 {[%clk 0:00:14]}  hxg3 {[%clk 0:00:12]} 63. Ba2 {[%clk 0:00:12]}  Kd4 {[%clk 0:00:12]} 64. Kg2 {[%clk 0:00:12]}  Bd6 {[%clk 0:00:12]} 0-1


[Site "https://www.chess.com"]

[Event "Titled Tuesday Blitz August 22 Early 2023"]
[White "Bachmann, Axel"]
[Black "Martinez Alcantara, Jose Eduardo"]
[WhiteFideId "3700488"]
[BlackFideId "3805662"]
[WhiteElo "2853"]
[BlackElo "3033"]
[Result "0-1"]
[Round "5"]
[TimeControl "180+1"]
[Date "2023.08.22"]
[WhiteClock "0:00:00"]
[BlackClock "0:00:07"]
[Board "13"]

1. e4 {[%clk 0:02:59]}  Nc6 {[%clk 0:03:00]} 2. d4 {[%clk 0:02:54]}  d6 {[%clk 0:03:01]} 3. Nf3 {[%clk 0:02:50]}  Nf6 {[%clk 0:03:01]} 4. Nc3 {[%clk 0:02:50]}  g6 {[%clk 0:03:01]} 5. d5 {[%clk 0:02:50]}  Nb8 {[%clk 0:03:02]} 6. h3 {[%clk 0:02:35]}  Bg7 {[%clk 0:03:02]} 7. Bf4 {[%clk 0:02:30]}  c6 {[%clk 0:02:53]} 8. Qd2 {[%clk 0:02:29]}  O-O {[%clk 0:02:48]} 9. Bh6 {[%clk 0:02:28]}  a6 {[%clk 0:02:22]} 10. Bxg7 {[%clk 0:02:26]}  Kxg7 {[%clk 0:02:22]} 11. O-O-O {[%clk 0:02:25]}  b5 {[%clk 0:02:22]} 12. dxc6 {[%clk 0:02:12]}  Nxc6 {[%clk 0:02:23]} 13. Qf4 {[%clk 0:01:59]}  e5 {[%clk 0:02:07]} 14. Qe3 {[%clk 0:01:35]}  Be6 {[%clk 0:02:03]} 15. Ng5 {[%clk 0:01:29]}  b4 {[%clk 0:01:57]} 16. Nxe6+ {[%clk 0:01:29]}  fxe6 {[%clk 0:01:58]} 17. Na4 {[%clk 0:01:21]}  Nd4 {[%clk 0:01:43]} 18. Bc4 {[%clk 0:01:18]}  Rc8 {[%clk 0:01:37]} 19. Bb3 {[%clk 0:01:17]}  Rc6 {[%clk 0:01:21]} 20. Kb1 {[%clk 0:01:16]}  Qc7 {[%clk 0:01:14]} 21. f4 {[%clk 0:00:59]}  Rc8 {[%clk 0:01:11]} 22. fxe5 {[%clk 0:00:58]}  dxe5 {[%clk 0:01:12]} 23. g4 {[%clk 0:00:33]}  Rxc2 {[%clk 0:00:56]} 24. g5 {[%clk 0:00:33]}  Nh5 {[%clk 0:00:56]} 25. Rhf1 {[%clk 0:00:17]}  Nxb3 {[%clk 0:00:46]} 26. axb3 {[%clk 0:00:16]}  Nf4 {[%clk 0:00:46]} 27. Nb6 {[%clk 0:00:14]}  Re2 {[%clk 0:00:35]} 28. Qxe2 {[%clk 0:00:13]}  Nxe2 {[%clk 0:00:34]} 29. Rd7+ {[%clk 0:00:14]}  Qxd7 {[%clk 0:00:34]} 30. Nxd7 {[%clk 0:00:15]}  Nd4 {[%clk 0:00:18]} 31. Ka2 {[%clk 0:00:13]}  Rc7 {[%clk 0:00:14]} 32. Nxe5 {[%clk 0:00:13]}  Ne2 {[%clk 0:00:12]} 33. Rf6 {[%clk 0:00:11]}  Nc1+ {[%clk 0:00:08]} 34. Kb1 {[%clk 0:00:10]}  Nxb3 {[%clk 0:00:09]} 35. Rxe6 {[%clk 0:00:10]}  Nd2+ {[%clk 0:00:10]} 36. Ka2 {[%clk 0:00:10]}  Rc5 {[%clk 0:00:10]} 37. b3 {[%clk 0:00:10]}  Rc2+ {[%clk 0:00:09]} 38. Ka1 {[%clk 0:00:10]}  Nxb3+ {[%clk 0:00:08]} 39. Kb1 {[%clk 0:00:11]}  Rc7 {[%clk 0:00:07]} 40. Rxa6 {[%clk 0:00:09]}  Nd2+ {[%clk 0:00:07]} 41. Kb2 {[%clk 0:00:10]}  Nxe4 {[%clk 0:00:07]} 42. h4 {[%clk 0:00:08]}  Ng3 {[%clk 0:00:08]} 43. Nc6 {[%clk 0:00:01]}  Nf5 {[%clk 0:00:08]} 44. Nd8 {[%clk 0:00:02]}  Re7 {[%clk 0:00:08]} 45. Ne6+ {[%clk 0:00:02]}  Kf7 {[%clk 0:00:08]} 46. Nd8+ {[%clk 0:00:02]}  Ke8 {[%clk 0:00:09]} 47. Nc6 {[%clk 0:00:03]}  Re2+ {[%clk 0:00:09]} 48. Kb3 {[%clk 0:00:04]}  Nxh4 {[%clk 0:00:08]} 49. Ra8+ {[%clk 0:00:05]}  Kd7 {[%clk 0:00:08]} 50. Nd4 {[%clk 0:00:06]}  Re4 {[%clk 0:00:07]} 51. Kc4 {[%clk 0:00:05]}  Nf5 {[%clk 0:00:07]} 52. Kd5 {[%clk 0:00:00]}  Rxd4+ {[%clk 0:00:07]} 0-1


[Site "https://www.chess.com"]

[Event "Titled Tuesday Blitz August 22 Early 2023"]
[White "Andreikin, Dmitry"]
[Black "Zemlyanskii, Ivan"]
[WhiteFideId "4158814"]
[BlackFideId "24249971"]
[WhiteElo "3001"]
[BlackElo "2841"]
[Result "1-0"]
[Round "5"]
[TimeControl "180+1"]
[Date "2023.08.22"]
[WhiteClock "0:00:07"]
[BlackClock "0:00:01"]
[Board "15"]

1. d4 {[%clk 0:03:00]}  d5 {[%clk 0:02:22]} 2. c4 {[%clk 0:02:58]}  e6 {[%clk 0:02:20]} 3. Nf3 {[%clk 0:02:58]}  Nf6 {[%clk 0:02:15]} 4. Bg5 {[%clk 0:02:58]}  dxc4 {[%clk 0:02:15]} 5. e4 {[%clk 0:02:58]}  b5 {[%clk 0:02:14]} 6. a4 {[%clk 0:02:54]}  c6 {[%clk 0:02:10]} 7. Nc3 {[%clk 0:02:50]}  b4 {[%clk 0:02:09]} 8. Nb1 {[%clk 0:02:49]}  Ba6 {[%clk 0:02:07]} 9. e5 {[%clk 0:02:46]}  h6 {[%clk 0:02:06]} 10. Bxf6 {[%clk 0:02:21]}  gxf6 {[%clk 0:02:06]} 11. Nbd2 {[%clk 0:02:21]}  fxe5 {[%clk 0:01:20]} 12. Nxe5 {[%clk 0:02:15]}  c3 {[%clk 0:01:08]} 13. Ne4 {[%clk 0:01:21]}  cxb2 {[%clk 0:00:54]} 14. Rb1 {[%clk 0:01:20]}  Bxf1 {[%clk 0:00:43]} 15. Qf3 {[%clk 0:01:18]}  Qc7 {[%clk 0:00:18]} 16. Kxf1 {[%clk 0:01:04]}  a5 {[%clk 0:00:14]} 17. Rxb2 {[%clk 0:01:01]}  Ra7 {[%clk 0:00:14]} 18. Nf6+ {[%clk 0:00:55]}  Kd8 {[%clk 0:00:14]} 19. Rc2 {[%clk 0:00:46]}  Bg7 {[%clk 0:00:09]} 20. Nxc6+ {[%clk 0:00:45]}  Nxc6 {[%clk 0:00:10]} 21. Rxc6 {[%clk 0:00:45]}  Qb7 {[%clk 0:00:08]} 22. Ke2 {[%clk 0:00:36]}  Ke7 {[%clk 0:00:06]} 23. d5 {[%clk 0:00:24]}  Bxf6 {[%clk 0:00:04]} 24. d6+ {[%clk 0:00:24]}  Ke8 {[%clk 0:00:04]} 25. Rd1 {[%clk 0:00:14]}  Qd7 {[%clk 0:00:03]} 26. Qxf6 {[%clk 0:00:10]}  Qxc6 {[%clk 0:00:03]} 27. Qxh8+ {[%clk 0:00:10]}  Kd7 {[%clk 0:00:04]} 28. Qxh6 {[%clk 0:00:10]}  Qc4+ {[%clk 0:00:03]} 29. Ke1 {[%clk 0:00:10]}  Qc3+ {[%clk 0:00:03]} 30. Rd2 {[%clk 0:00:11]}  b3 {[%clk 0:00:03]} 31. Qf8 {[%clk 0:00:10]}  b2 {[%clk 0:00:02]} 32. Qxf7+ {[%clk 0:00:07]}  Kc6 {[%clk 0:00:03]} 33. Qe8+ {[%clk 0:00:07]}  Kb6 {[%clk 0:00:01]} 34. Qb5# {[%clk 0:00:07]} 1-0


[Site "https://www.chess.com"]